fUSD/lending_fUSD_20240719
["ID","MTS","AMOUNT","RATE_DAILY","PERIOD"]
[332658172,1721406651692,-14395.48,0.00034109,14]
[332658174,1721406651702,-4458.07,0.00034109,14]
[332658176,1721406651712,-1021.19,0.00034109,14]
[332658178,1721406651723,-2412.68,0.00034109,14]
[332658180,1721406651734,-500.0,0.00034109,14]
[332658182,1721406651744,-711.73,0.00034109,14]
[332658184,1721406651754,-612.06,0.00034109,14]
[332658186,1721406651764,-986.06,0.00034109,14]
[332658188,1721406651774,-5078.8,0.00034109,14]
[332658190,1721406651785,-7014.28,0.00034109,14]
[332658193,1721406651796,-579.04,0.00034109,14]
[332658195,1721406651807,-1084.8,0.00034109,14]
[332658197,1721406651817,-3268.33,0.00034109,14]
[332658205,1721406651889,-9000.65,0.00034109,14]
[332658207,1721406651899,-4940.01,0.00034109,14]
[332658209,1721406651909,-4849.94,0.00034109,14]
[332658211,1721406651919,-9236.16,0.00034109,14]
[332658213,1721406651929,-1329.79,0.00034109,14]
[332658215,1721406651939,-1759.67,0.00034109,14]
[332658217,1721406651950,-500.0,0.00034109,14]
[332658219,1721406651960,-8561.66,0.00034109,14]
[332658221,1721406651970,-500.0,0.00034109,14]
[332658223,1721406651980,-500.0,0.00034109,14]
[332658224,1721406651990,-500.0,0.00034109,14]
[332658226,1721406651999,-7088.72,0.00034109,14]
[332658228,1721406652009,-9053.07,0.00034109,14]
[332658230,1721406652019,-7365.65,0.00034109,14]
[332658232,1721406652029,-3770.05,0.00034109,14]
[332658234,1721406652039,-1387.6,0.00034109,14]
[332658236,1721406652050,-1804.67,0.00034109,14]
[332658238,1721406652059,-687.74,0.00034109,14]
[332658240,1721406652069,-1637.67,0.00034109,14]
[332658242,1721406652079,-500.0,0.00034109,14]
[332658244,1721406652088,-500.0,0.00034109,14]
[332658246,1721406652098,-500.0,0.00034109,14]
[332658248,1721406652109,-500.0,0.00034109,14]
[332658250,1721406652120,-500.0,0.00034109,14]
[332658252,1721406652130,-6733.43,0.00034109,14]
[332658254,1721406652140,-1179.7,0.00034109,14]
[332658255,1721406652150,-7685.85,0.00034109,14]
[332658257,1721406652160,-1025.91,0.00034109,14]
[332658259,1721406652169,-2940.65,0.00034109,14]
[332658261,1721406652178,-673.81,0.00034109,14]
[332658263,1721406652187,-5069.82,0.00034109,14]
[332658265,1721406652198,-3890.22,0.00034109,14]
[332658267,1721406652208,-594.53,0.00034109,14]
[332658269,1721406652217,-3237.13,0.00034109,14]
[332658271,1721406652226,-1055.49,0.00034109,14]
[332658272,1721406652236,-500.0,0.00034109,14]
[332658274,1721406652246,-500.0,0.00034109,14]
[332658276,1721406652256,-2282.97,0.00034109,14]
[332658278,1721406652266,-2071.37,0.00034109,2]
[332658280,1721406652276,-5864.93,0.00034109,14]
[332658282,1721406652287,-500.0,0.00034109,14]
[332658284,1721406652296,-2285.44,0.00034109,14]
[332658286,1721406652306,-1204.2,0.00034109,14]
[332658288,1721406652315,-500.0,0.00034109,14]
[332658290,1721406652324,-6802.64,0.00034109,14]
[332658292,1721406652334,-1957.81,0.00034109,14]
[332658294,1721406652343,-810.81,0.00034109,14]
[332658295,1721406652353,-1244.68,0.00034109,14]
[332658297,1721406652364,-844.39,0.00034109,14]
[332658299,1721406652374,-500.0,0.00034109,14]
[332658301,1721406652383,-3588.33,0.00034109,14]
[332658303,1721406652393,-854.9,0.00034109,14]
[332658305,1721406652403,-1951.81,0.00034109,14]
[332658307,1721406652413,-3906.45,0.00034109,14]
[332658309,1721406652423,-865.64,0.00034109,14]
[332658311,1721406652433,-3507.5,0.00034109,14]
[332658313,1721406652443,-2603.35,0.00034109,14]
[332658315,1721406652452,-1805.65,0.00034109,14]
[332658316,1721406652462,-1159.4,0.00034109,14]
[332658318,1721406652472,-6200.88,0.00034109,14]
[332658320,1721406652482,-500.0,0.00034109,14]
[332658322,1721406652492,-500.0,0.00034109,14]
[332658324,1721406652501,-896.2,0.00034109,14]
[332658326,1721406652512,-2326.61,0.00034109,14]
[332658328,1721406652522,-5674.73,0.00034109,14]
[332658330,1721406652532,-1819.85,0.00034109,14]
[332658332,1721406652541,-15551.55,0.00034109,14]
[332658334,1721406652551,-500.0,0.00034109,14]
[332658336,1721406652561,-2542.41,0.00034109,14]
[332658337,1721406652571,-1130.18,0.00034109,14]
[332658339,1721406652580,-500.0,0.00034109,14]
[332658341,1721406652590,-500.0,0.00034109,14]
[332658343,1721406652600,-3436.5,0.00034109,14]
[332658345,1721406652610,-12275.18,0.00034109,14]
[332658347,1721406652622,-500.0,0.00034109,14]
[332658349,1721406652631,-540.53,0.00034109,14]
[332658351,1721406652644,-7174.87,0.00034109,14]
[332658353,1721406652654,-1873.05,0.00034109,14]
[332658355,1721406652664,-609.14,0.00034109,14]
[332658357,1721406652673,-3712.54,0.00034109,14]
[332658359,1721406652685,-1743.57,0.00034109,14]
[332658361,1721406652694,-20243.8,0.00034109,14]
[332658363,1721406652705,-3792.36,0.00034109,14]
[332658365,1721406652716,-794.64,0.00034109,14]
[332658367,1721406652726,-5828.93,0.00034109,14]
[332658369,1721406652736,-522.89,0.00034109,14]
[332658371,1721406652746,-500.0,0.00034109,14]
[332658373,1721406652756,-5889.56,0.00034109,14]
[332658374,1721406652766,-500.0,0.00034109,14]
[332658376,1721406652776,-525.83,0.00034109,14]
[332658378,1721406652786,-500.0,0.00034109,14]
[332658380,1721406652796,-10947.61,0.00034109,14]
[332658382,1721406652807,-11019.54,0.00034109,14]
[332658384,1721406652817,-5912.02,0.00034109,14]
[332658386,1721406652827,-500.0,0.00034109,14]
[332658388,1721406652837,-2246.16,0.00034109,14]
[332658390,1721406652847,-500.0,0.00034109,14]
[332658392,1721406652856,-8229.51,0.00034109,14]
[332658394,1721406652868,-4655.89,0.00034109,14]
[332658396,1721406652877,-1033.47,0.00034109,14]
[332658398,1721406652887,-1465.61,0.00034109,14]
[332658400,1721406652897,-1464.16,0.00034109,14]
[332658402,1721406652907,-4196.57,0.00034109,14]
[332658404,1721406652917,-5345.19,0.00034109,14]
[332658406,1721406652927,-1910.19,0.00034109,14]
[332658407,1721406652937,-1194.16,0.00034109,14]
[332658409,1721406652947,-500.0,0.00034109,14]
[332658411,1721406652958,-573.17,0.00034109,14]
[332658413,1721406652968,-500.0,0.00034109,14]
[332658415,1721406652978,-10933.25,0.00034109,14]
[332658417,1721406652988,-500.0,0.00034109,14]
[332658419,1721406652998,-1409.33,0.00034109,14]
[332658421,1721406653008,-500.0,0.00034109,14]
[332658423,1721406653017,-1154.96,0.00034109,14]
[332658425,1721406653027,-3674.93,0.00034109,14]
[332658427,1721406653036,-3354.51,0.00034109,14]
[332658429,1721406653046,-4811.1,0.00034109,14]
[332658430,1721406653056,-1405.5,0.00034109,14]
[332658432,1721406653065,-735.83,0.00034109,14]
[332658434,1721406653075,-1524.71,0.00034109,14]
[332658436,1721406653085,-1682.97,0.00034109,14]
[332658438,1721406653096,-3837.86,0.00034109,14]
[332658440,1721406653106,-556.21429261,0.00034109,14]
[332658442,1721406653116,-5839.3,0.00034109,14]
[332658444,1721406653126,-500.0,0.00034109,14]
[332658446,1721406653136,-1215.13,0.00034109,14]
[332658448,1721406653145,-5878.24,0.00034109,14]
[332658450,1721406653155,-500.0,0.00034109,14]
[332658451,1721406653164,-500.0,0.00034109,14]
[332658453,1721406653173,-218.99085003,0.00034109,14]
[332658455,1721406653184,-884.11,0.00034109,14]
[332658457,1721406653193,-617.89300699,0.00034109,14]
[332658459,1721406653203,-1263.94,0.00034109,14]
[332658461,1721406653212,-500.0,0.00034109,14]
[332658463,1721406653222,-500.0,0.00034109,14]
[332658464,1721406653231,-1861.13,0.00034109,14]
[332658466,1721406653240,-4030.15,0.00034109,14]
[332658468,1721406653250,-575.36,0.00034109,14]
[332658470,1721406653259,-1017.03,0.00034109,14]
[332658472,1721406653268,-500.0,0.00034109,14]
[332658474,1721406653278,-500.0,0.00034109,14]
[332658476,1721406653287,-1691.71,0.00034109,14]
[332658477,1721406653296,-500.0,0.00034109,14]
[332658479,1721406653305,-1374.24,0.00034109,14]
[332658481,1721406653315,-768.4,0.00034109,14]
[332658483,1721406653324,-500.0,0.00034109,14]
[332658485,1721406653333,-1697.84,0.00034109,14]
[332658487,1721406653343,-2559.7,0.00034109,14]
[332658489,1721406653353,-500.0,0.00034109,14]
[332658491,1721406653362,-500.0,0.00034109,14]
[332658493,1721406653372,-624.46,0.00034109,14]
[332658495,1721406653382,-1946.59,0.00034109,14]
[332658496,1721406653392,-2272.36,0.00034109,14]
[332658498,1721406653401,-500.0,0.00034109,14]
[332658500,1721406653412,-500.0,0.00034109,14]
[332658502,1721406653421,-1917.13,0.00034109,14]
[332658504,1721406653431,-500.0,0.00034109,14]
[332658506,1721406653440,-500.0,0.00034109,14]
[332658507,1721406653450,-500.0,0.00034109,14]
[332658509,1721406653459,-500.0,0.00034109,14]
[332658511,1721406653469,-3027.94,0.00034109,14]
[332658513,1721406653478,-500.0,0.00034109,14]
[332658515,1721406653488,-973.22,0.00034109,14]
[332658517,1721406653497,-302.82663429,0.00034109,14]
[332658519,1721406653507,-515.37334078,0.00034109,14]
[332658521,1721406653516,-500.0,0.00034109,14]
[332658523,1721406653526,-500.0,0.00034109,14]
[332658525,1721406653535,-2408.88,0.00034109,14]
[332658526,1721406653545,-500.0,0.00034109,14]
[332658528,1721406653554,-731.9,0.00034109,14]
[332658530,1721406653563,-646.1,0.00034109,14]
[332658532,1721406653573,-500.0,0.00034109,14]
[332658534,1721406653583,-586.55,0.00034109,14]
[332658536,1721406653592,-500.0,0.00034109,14]
[332658538,1721406653602,-500.0,0.00034109,14]
[332658540,1721406653611,-597.62,0.00034109,14]
[332658542,1721406653622,-1178.13,0.00034109,14]
[332658544,1721406653632,-2668.54,0.00034109,14]
[332658546,1721406653644,-833.33,0.00034109,14]
[332658548,1721406653653,-1314.6,0.00034109,14]
[332658550,1721406653663,-2734.59,0.00034109,14]
[332658552,1721406653672,-2830.23,0.00034109,14]
[332658554,1721406653681,-632.52,0.00034109,14]
[332658555,1721406653690,-1416.89,0.00034109,14]
[332658557,1721406653701,-695.28,0.00034109,120]
[332658559,1721406653711,-500.0,0.00034109,14]
[332658561,1721406653721,-1341.92,0.00034109,14]
[332658563,1721406653730,-4660.25,0.00034109,14]
[332658565,1721406653739,-2241.29,0.00034109,14]
[332658567,1721406653748,-500.0,0.00034109,14]
[332658569,1721406653758,-957.11,0.00034109,14]
[332658571,1721406653767,-877.56,0.00034109,14]
[332658573,1721406653776,-500.0,0.00034109,14]
[332658575,1721406653785,-1477.9,0.00034109,14]
[332658577,1721406653794,-500.0,0.00034109,14]
[332658578,1721406653804,-500.0,0.00034109,14]
[332658580,1721406653813,-500.0,0.00034109,14]
[332658582,1721406653823,-597.23,0.00034109,14]
[332658584,1721406653832,-500.0,0.00034109,14]
[332658586,1721406653841,-689.3,0.00034109,14]
[332658588,1721406653851,-1046.23,0.00034109,14]
[332658590,1721406653861,-1705.13,0.00034109,14]
[332658592,1721406653872,-500.0,0.00034109,14]
[332658594,1721406653882,-778.74,0.00034109,14]
[332658596,1721406653892,-679.86,0.00034109,14]
[332658598,1721406653907,-500.0,0.00034109,14]
[332658601,1721406653919,-542.8,0.00034109,14]
[332658603,1721406653928,-500.0,0.00034109,14]
[332658604,1721406653937,-500.0,0.00034109,14]
[332658607,1721406653948,-843.49,0.00034109,14]
[332658608,1721406653957,-500.0,0.00034109,14]
[332658610,1721406653966,-500.0,0.00034109,14]
[332658612,1721406653976,-500.0,0.00034109,14]
[332658614,1721406653985,-500.0,0.00034109,14]
[332658616,1721406653994,-500.0,0.00034109,14]
[332658618,1721406654004,-155.89,0.00034109,14]
[332658620,1721406654013,-498.48115019,0.00034109,14]
[332658622,1721406654024,-500.0,0.00034109,14]
[332658624,1721406654034,-500.0,0.00034109,14]
[332658626,1721406654044,-500.0,0.00034109,14]
[332658628,1721406654054,-500.0,0.00034109,14]
[332658630,1721406654064,-500.0,0.00034109,14]
[332658632,1721406654076,-754.08,0.00034109,14]
[332658634,1721406654086,-545.47,0.00034109,14]
[332658636,1721406654097,-2912.7,0.00034109,14]
[332658638,1721406654106,-16228.03873328,0.00034109,2]
[332658640,1721406654116,-2000.0,0.00034109,2]
[332658642,1721406654126,-200.0,0.00034109,2]
[332658644,1721406654136,-500.0,0.00034109,14]
[332658646,1721406654150,-500.0,0.00034109,2]
[332658648,1721406654160,-200.0,0.00034109,7]
[332658650,1721406654170,-608.07,0.00034109,30]
[332658652,1721406654180,-618.5,0.00034109,14]
[332658654,1721406654189,-150.0,0.00034109,7]
[332658656,1721406654199,-150.0,0.00034109,7]
[332658658,1721406654208,-150.0,0.00034109,7]
[332658660,1721406654220,-150.00000001,0.00034109,7]
[332658662,1721406654231,-1106.36,0.00034109,14]
[332658664,1721406654243,-150.69730381,0.00034109,7]
[332658666,1721406654253,-150.0,0.00034109,7]
[332658668,1721406654263,-150.57964353,0.00034109,7]
[332658670,1721406654274,-150.0,0.00034109,7]
[332658672,1721406654284,-150.0,0.00034109,7]
[332658674,1721406654292,-150.0,0.00034109,7]
[332658676,1721406654304,-150.29560903,0.00034109,7]
[332658678,1721406654314,-500.0,0.00034109,14]
[332658680,1721406654324,-615.61,0.00034109,14]
[332658682,1721406654335,-500.0,0.00034109,14]
[332658684,1721406654345,-196.44641898,0.00034109,14]
[332658686,1721406654355,-627.43,0.00034109,14]
[332658688,1721406654366,-768.33,0.00034109,2]
[332658690,1721406654375,-1640.9834668,0.00034115,2]
[332658691,1721406654384,-7555.495936,0.00034115,2]
[332658692,1721406654394,-280.9876064,0.00034115,2]
[332658693,1721406654404,-220.61,0.00034137,3]
[332658694,1721406654414,-627.15,0.000342,2]
[332658695,1721406654424,-1665.78,0.00034202,2]
[332658696,1721406654434,-525.75,0.00034202,2]
[332658697,1721406654444,-838.46,0.00034214,2]
[332658698,1721406654453,-833.09,0.00034214,2]
[332658700,1721406654462,-1640.9834668,0.00034223,2]
[332658701,1721406654471,-1640.9834668,0.00034223,2]
[332658702,1721406654481,-7555.495936,0.00034223,2]
[332658703,1721406654493,-7555.495936,0.00034223,2]
[332658704,1721406654504,-280.9876064,0.00034223,2]
[332658705,1721406654513,-280.9876064,0.00034223,2]
[332658706,1721406654523,-500.0,0.00034234,14]
[332658707,1721406654534,-500.0,0.00034234,14]
[332658708,1721406654545,-500.0,0.00034234,14]
[332658709,1721406654557,-500.0,0.00034244,14]
[332658710,1721406654567,-500.0,0.00034244,14]
[332658711,1721406654579,-547.67,0.00034244,14]
[332658712,1721406654590,-500.0,0.00034245,2]
[332658713,1721406654600,-500.0,0.00034246,14]
[332658714,1721406654611,-729.12,0.00034246,14]
[332658715,1721406654622,-500.0,0.00034246,14]
[332658716,1721406654632,-500.0,0.00034246,14]
[332658717,1721406654644,-964.89,0.00034246,14]
[332658718,1721406654654,-500.0,0.00034246,14]
[332658719,1721406654664,-1397.42,0.00034246,14]
[332658721,1721406654674,-507.4,0.00034246,14]
[332658722,1721406654684,-1273.65,0.00034246,14]
[332658723,1721406654693,-500.0,0.00034246,14]
[332658724,1721406654705,-500.0,0.00034246,14]
[332658725,1721406654718,-792.24,0.00034246,14]
[332658726,1721406654729,-1123.54,0.00034246,14]
[332658727,1721406654739,-2002.14,0.00034246,14]
[332658728,1721406654750,-734.79,0.00034246,14]
[332658729,1721406654760,-525.59,0.00034246,14]
[332658730,1721406654769,-500.0,0.00034246,14]
[332658731,1721406654779,-709.12,0.00034246,14]
[332658732,1721406654791,-500.0,0.00034246,14]
[332658733,1721406654800,-500.0,0.00034246,14]
[332658734,1721406654809,-500.0,0.00034246,14]
[332658735,1721406654819,-500.0,0.00034246,14]
[332658736,1721406654828,-1118.74,0.00034246,14]
[332658737,1721406654837,-1718.26,0.00034246,14]
[332658738,1721406654847,-853.38,0.00034246,14]
[332658739,1721406654856,-1130.69,0.00034246,14]
[332658740,1721406654867,-500.0,0.00034246,14]
[332658741,1721406654876,-500.0,0.00034246,14]
[332658742,1721406654886,-955.27,0.00034246,14]
[332658743,1721406654895,-647.66,0.00034246,14]
[332658744,1721406654904,-500.0,0.00034246,14]
[332658745,1721406654913,-1107.57,0.00034246,14]
[332658746,1721406654923,-500.0,0.00034246,14]
[332658747,1721406654933,-504.80513843,0.00034246,14]
[332658748,1721406654943,-500.0,0.00034246,14]
[332658749,1721406654954,-546.29,0.00034246,14]
[332658750,1721406654965,-500.0,0.00034246,14]
[332658751,1721406654975,-898.82,0.00034246,14]
[332658752,1721406654984,-507.33631853,0.00034246,14]
[332658753,1721406654993,-500.0,0.00034246,14]
[332658754,1721406655003,-500.0,0.00034246,14]
[332658755,1721406655012,-500.0,0.00034246,14]
[332658756,1721406655021,-500.0,0.00034246,14]
[332658757,1721406655030,-453.39341348,0.00034246,14]
[332658758,1721406655040,-500.0,0.00034246,14]
[332658759,1721406655050,-500.0,0.00034246,14]
[332658760,1721406655059,-593.12,0.00034246,14]
[332658761,1721406655069,-500.0,0.00034246,14]
[332658762,1721406655079,-500.0,0.00034246,14]
[332658763,1721406655088,-500.0,0.00034246,14]
[332658764,1721406655097,-1267.66,0.00034246,14]
[332658766,1721406655108,-695.31755174,0.00034246,14]
[332658796,1721406655484,-308.83244826,0.00034246,14]
[332658798,1721406655494,-500.0,0.00034246,14]
[332658799,1721406655505,-329.20256721,0.00034246,14]
[332658800,1721406655517,-170.79743279,0.00034246,14]
[332658801,1721406655526,-500.0,0.00034246,14]
[332658802,1721406655536,-500.0,0.00034246,14]
[332658803,1721406655545,-524.96,0.00034246,14]
[332658804,1721406655555,-500.0,0.00034246,14]
[332658805,1721406655564,-672.0,0.00034246,14]
[332658806,1721406655574,-500.0,0.00034246,14]
[332658807,1721406655583,-500.0,0.00034246,14]
[332658808,1721406655595,-1604.34,0.00034246,14]
[332658809,1721406655606,-200.94742931,0.00034246,14]
[332658810,1721406655617,-437.63801077,0.00034246,14]
[332658811,1721406655631,-1424.4705241,0.00034246,14]
[332658812,1721406655646,-159.10720414,0.00031885,4]
[332658813,1721406655657,-821.89146513,0.00034246,14]
[332658814,1721406655666,-601.81063073,0.00034246,14]
[332658815,1721406655679,-809.96936927,0.00034246,14]
[332658816,1721406655691,-500.0,0.00034246,14]
[332658817,1721406655702,-858.0,0.00034246,14]
[332658818,1721406655821,-1259.18,0.00034246,14]
[332658819,1721406655831,-500.0,0.00034246,14]
[332658820,1721406655842,-500.0,0.00034246,14]
[332658821,1721406655852,-500.0,0.00034246,14]
[332658822,1721406655863,-928.26,0.00034246,14]
[332658823,1721406655874,-781.23,0.00034246,14]
[332658824,1721406655883,-161.22480975,0.00034246,14]
[332658825,1721406655894,-860.86,0.00034246,14]
[332658826,1721406655904,-756.27,0.00034246,14]
[332658827,1721406655913,-840.95,0.00034246,14]
[332658828,1721406655923,-579.58,0.00034246,14]
[332658829,1721406655935,-3829.75,0.00034246,14]
[332658830,1721406655945,-500.0,0.00034246,14]
[332658831,1721406655955,-512.29,0.00034246,14]
[332658832,1721406655966,-992.53,0.00034246,14]
[332658833,1721406655975,-500.0,0.00034246,14]
[332658834,1721406655986,-500.0,0.00034246,14]
[332658835,1721406655995,-455.29737997,0.00034246,14]
[332658836,1721406656004,-1687.45,0.00034246,14]
[332658837,1721406656014,-554.18,0.00034246,14]
[332658838,1721406656023,-2139.51,0.00034246,14]
[332658839,1721406656032,-3678.46,0.00034246,14]
[332658840,1721406656042,-1957.81,0.00034246,14]
[332658841,1721406656052,-183.00732498,0.00034246,14]
[332658842,1721406656062,-1102.24,0.00034246,14]
[332658843,1721406656072,-500.0,0.00034246,14]
[332658844,1721406656082,-500.0,0.00034246,14]
[332658845,1721406656092,-500.0,0.00034246,14]
[332658846,1721406656102,-2659.19,0.00034246,14]
[332658847,1721406656111,-500.0,0.00034246,14]
[332658848,1721406656122,-500.0,0.00034246,14]
[332658849,1721406656132,-748.36,0.00034246,14]
[332658850,1721406656141,-500.0,0.00034246,14]
[332658851,1721406656151,-505.27738405,0.00034246,14]
[332658852,1721406656161,-218.85647977,0.00034246,14]
[332658853,1721406656171,-500.0,0.00034246,14]
[332658854,1721406656180,-1342.76,0.00034246,14]
[332658855,1721406656189,-500.0,0.00034246,14]
[332658856,1721406656199,-1446.86,0.00034246,14]
[332658857,1721406656209,-2318.73,0.00034246,14]
[332658858,1721406656221,-500.0,0.00034246,14]
[332658859,1721406656232,-500.0,0.00034246,14]
[332658860,1721406656242,-500.0,0.00034246,14]
[332658861,1721406656253,-968.02,0.00034246,14]
[332658862,1721406656263,-500.0,0.00034246,14]
[332658863,1721406656273,-500.0,0.00034246,14]
[332658864,1721406656282,-500.0,0.00034246,14]
[332658865,1721406656291,-1215.42,0.00034246,14]
[332658866,1721406656302,-393.94164953,0.00034246,14]
[332658867,1721406656313,-2711.43,0.00034246,14]
[332658868,1721406656322,-1189.06,0.00034246,14]
[332658869,1721406656332,-500.0,0.00034246,14]
[332658870,1721406656342,-500.0,0.00034246,14]
[332658871,1721406656352,-717.63,0.00034246,14]
[332658872,1721406656361,-591.06,0.00034246,14]
[332658873,1721406656372,-952.61,0.00034246,14]
[332658874,1721406656382,-2016.29,0.00034246,14]
[332658875,1721406656391,-500.0,0.00034246,14]
[332658876,1721406656400,-500.0,0.00034246,14]
[332658877,1721406656410,-837.41,0.00034246,14]
[332658878,1721406656420,-500.0,0.00034246,14]
[332658879,1721406656429,-517.97,0.00034246,14]
[332658880,1721406656440,-1315.92,0.00034246,14]
[332658881,1721406656451,-1189.37,0.00034246,14]
[332658882,1721406656462,-787.01,0.00034246,14]
[332658883,1721406656472,-853.41,0.00034246,14]
[332658884,1721406656482,-500.0,0.00034246,14]
[332658885,1721406656493,-618.57,0.00034246,14]
[332658886,1721406656503,-922.88,0.00034246,14]
[332658887,1721406656514,-476.68659168,0.00034246,14]
[332658888,1721406656525,-1426.93,0.00034246,14]
[332658889,1721406656535,-500.0,0.00034246,14]
[332658890,1721406656547,-2121.44,0.00034246,14]
[332658891,1721406656559,-1492.61,0.00034246,14]
[332658892,1721406656569,-2060.02,0.00034246,14]
[332658893,1721406656581,-500.0,0.00034246,14]
[332658894,1721406656591,-1270.35,0.00034246,14]
[332658895,1721406656603,-1782.26,0.00034246,14]
[332658896,1721406656615,-3015.1,0.00034246,14]
[332658897,1721406656627,-500.0,0.00034246,14]
[332658898,1721406656640,-1363.34,0.00034246,14]
[332658899,1721406656649,-942.62,0.00034246,14]
[332658900,1721406656661,-1188.43,0.00034246,14]
[332658901,1721406656671,-2312.04,0.00034246,14]
[332658902,1721406656682,-564.59082623,0.00034246,14]
[332658903,1721406656692,-768.63,0.00034246,14]
[332658904,1721406656704,-499.99235358,0.00034246,14]
[332658905,1721406656714,-569.91,0.00034246,14]
[332658906,1721406656723,-500.0,0.00034246,14]
[332658907,1721406656734,-500.0,0.00034246,14]
[332658908,1721406656745,-1535.53,0.00034246,14]
[332658909,1721406656755,-1425.08,0.00034246,14]
[332658910,1721406656767,-500.0,0.00034246,14]
[332658911,1721406656778,-785.93,0.00034246,14]
[332658912,1721406656787,-728.38,0.00034246,14]
[332658913,1721406656798,-3290.05,0.00034246,14]
[332658914,1721406656809,-829.12,0.00034246,14]
[332658915,1721406656820,-500.0,0.00034246,14]
[332658916,1721406656829,-500.0,0.00034246,14]
[332658917,1721406656839,-918.05,0.00034246,14]
[332658918,1721406656848,-1257.94,0.00034246,14]
[332658919,1721406656857,-2459.5,0.00034246,14]
[332658920,1721406656867,-500.0,0.00034246,14]
[332658921,1721406656876,-500.0,0.00034246,14]
[332658922,1721406656886,-500.0,0.00034246,14]
[332658923,1721406656896,-798.81,0.00034246,14]
[332658924,1721406656905,-742.79,0.00034246,14]
[332658925,1721406656915,-500.0,0.00034246,14]
[332658926,1721406656924,-500.0,0.00034246,14]
[332658927,1721406656935,-1058.6,0.00034246,14]
[332658928,1721406656945,-559.06,0.00034246,14]
[332658929,1721406656955,-412.28846566,0.00034246,14]
[332658930,1721406656966,-983.06,0.00034246,14]
[332658931,1721406656977,-500.0,0.00034246,14]
[332658932,1721406656986,-1339.89,0.00034246,14]
[332658933,1721406656996,-532.01,0.00034246,14]
[332658934,1721406657005,-501.72,0.00034246,14]
[332658935,1721406657014,-984.21,0.00034246,14]
[332658936,1721406657023,-708.71,0.00034246,14]
[332658937,1721406657033,-4177.7,0.00034246,14]
[332658938,1721406657042,-1412.03,0.00034246,14]
[332658939,1721406657051,-1608.43,0.00034246,14]
[332658940,1721406657061,-620.3,0.00034246,14]
[332658941,1721406657071,-465.67039241,0.00034246,14]
[332658942,1721406657081,-667.6,0.00034246,14]
[332658943,1721406657090,-541.83,0.00034246,14]
[332658944,1721406657099,-1153.89,0.00034246,14]
[332658945,1721406657109,-500.0,0.00034246,14]
[332658946,1721406657120,-4221.72,0.00034246,14]
[332658947,1721406657129,-500.0,0.00034246,14]
[332658948,1721406657140,-500.0,0.00034246,14]
[332658949,1721406657150,-990.52,0.00034246,14]
[332658950,1721406657160,-500.0,0.00034246,14]
[332658951,1721406657169,-2019.59,0.00034246,14]
[332658952,1721406657179,-1099.48,0.00034246,14]
[332658953,1721406657188,-500.0,0.00034246,14]
[332658954,1721406657197,-500.0,0.00034246,14]
[332658955,1721406657206,-1257.09,0.00034246,14]
[332658956,1721406657215,-529.45759225,0.00034246,14]
[332658957,1721406657224,-547.27,0.00034246,14]
[332658958,1721406657234,-500.0,0.00034246,14]